bitfinex/quotes_SOLUSD_20220307
["timestamp","ask_amount","ask_price","bid_price","bid_amount"]
[1646690769078,46.9144,81.859,81.752,6.0]
[1646690769278,0.25,81.858,81.754,122.9]
[1646690769679,0.25,81.858,81.755,6.0]
[1646690769880,46.9144,81.859,81.755,6.0]
[1646690770179,18.344,81.85,81.756,0.25]
[1646690770581,35.60719338,81.858,81.755,0.25]
[1646690770784,53.55352228,81.849,81.755,0.25]
[1646690770981,37.71611,81.829,81.753,23.5892]
[1646690771183,0.25,81.828,81.753,23.5892]
[1646690771391,25.19731942,81.828,81.753,23.5892]
[1646690771588,50.96738702,81.828,81.72,14.43]
[1646690771784,27.78345468,81.827,81.733,100.0]
[1646690771987,18.3504,81.82,81.712,48.1229]
[1646690772184,0.25,81.819,81.712,48.1229]
[1646690772393,0.25,81.819,81.713,122.9]
[1646690772583,0.25,81.819,81.712,48.1229]
[1646690772884,0.25,81.819,81.713,122.9]
[1646690773083,0.25,81.819,81.715,122.9]
[1646690773288,26.0200676,81.819,81.72,14.43]
[1646690773485,26.0200676,81.819,81.722,122.9]
[1646690773688,26.0200676,81.819,81.724,122.9]
[1646690773884,26.0200676,81.819,81.726,122.9]
[1646690774085,26.0200676,81.819,81.728,122.9]
[1646690774284,26.0200676,81.819,81.73,122.9]
[1646690774486,26.0200676,81.819,81.731,6.25]
[1646690774785,26.0200676,81.819,81.732,6.25]
[1646690775085,27.78345468,81.818,81.729,6.25]
[1646690775287,0.25,81.817,81.729,6.25]
[1646690775486,28.40666794,81.809,81.729,0.25]
[1646690775686,0.25,81.808,81.729,0.25]
[1646690775888,0.25,81.808,81.723,24.511]
[1646690775889,0.25,81.808,81.724,0.25]
[1646690776287,0.25,81.808,81.723,24.511]
[1646690777989,0.25,81.808,81.724,0.25]
[1646690779489,18.3547,81.8,81.724,0.25]
[1646690779690,0.25,81.799,81.724,0.25]
[1646690780690,0.25,81.808,81.724,0.25]
[1646690781892,0.25,81.808,81.725,6.115]
[1646690782194,0.25,81.808,81.726,0.25]
[1646690782391,0.25,81.808,81.727,6.114]
[1646690782592,0.25,81.808,81.728,0.25]
[1646690782792,18.3542,81.8,81.729,6.114]
[1646690782994,0.25,81.799,81.73,0.25]
[1646690783196,0.25,81.799,81.731,6.115]
[1646690783409,0.25,81.799,81.732,0.25]
[1646690783794,18.3542,81.8,81.732,0.25]
[1646690784896,18.3542,81.8,81.725,0.25]
[1646690785095,0.25,81.799,81.725,0.25]
[1646690785296,18.3565,81.79,81.725,0.25]
[1646690785498,27.95590389,81.789,81.724,0.25]
[1646690785899,27.95590389,81.789,81.713,6.115]
[1646690786095,1.64320103,81.782,81.713,6.115]
[1646690786296,1.64320103,81.771,81.696,6.115]
[1646690786496,1.64320103,81.769,81.684,6.115]
[1646690786797,1.89320103,81.768,81.685,23.8461]
[1646690786997,1.64320103,81.767,81.686,6.117]
[1646690787196,0.25,81.766,81.687,0.25]
[1646690787397,0.25,81.766,81.688,6.117]
[1646690787598,141.2639,81.76,81.688,6.117]
[1646690787798,1.64320103,81.751,81.685,23.8461]
[1646690787997,31.57057713,81.75,81.685,23.8461]
[1646690788199,1.64320103,81.749,81.685,23.8461]
[1646690788409,0.25,81.748,81.685,23.8461]
[1646690789000,1.64320103,81.751,81.686,123.15]
[1646690789201,1.64320103,81.754,81.69,18.3606]
[1646690789400,1.64320103,81.765,81.691,123.15]
[1646690789601,1.64320103,81.77,81.7,61.1797]
[1646690789801,1.64320103,81.77,81.701,0.25]
[1646690790005,1.64320103,81.772,81.701,0.25]
[1646690790402,1.64320103,81.772,81.702,6.117]
[1646690790604,1.64320103,81.772,81.703,0.25]
[1646690790802,1.64320103,81.76,81.703,0.25]
[1646690791005,38.29753125,81.759,81.703,0.25]
[1646690791203,1.64320103,81.757,81.703,0.25]
[1646690791403,0.25,81.756,81.703,0.25]
[1646690791603,0.25,81.756,81.682,29.9902]
[1646690791802,1.64320103,81.753,81.686,6.0]
[1646690792002,18.3644,81.75,81.686,6.0]
[1646690792203,0.25,81.749,81.686,6.0]
[1646690792405,0.25,81.749,81.682,23.8732]
[1646690792706,6.8,81.749,81.682,23.8732]
[1646690792904,1.64320103,81.748,81.682,23.8732]
[1646690793108,141.2665,81.74,81.667,6.118]
[1646690793305,1.64320103,81.734,81.668,0.25]
[1646690793509,0.25,81.733,81.667,0.25]
[1646690793708,184.1469,81.73,81.631,6.0]
[1646690793909,0.25,81.729,81.632,6.121]
[1646690794105,1.64320103,81.727,81.633,6.0]
[1646690794310,124.54320103,81.725,81.631,6.0]
[1646690794509,1.89320103,81.724,81.632,6.121]
[1646690794706,14.43,81.72,81.631,6.121]
[1646690794906,0.25,81.719,81.631,6.121]
[1646690795106,18.3748,81.71,81.632,0.25]
[1646690795306,36.97535062,81.709,81.631,0.25]
[1646690795505,36.97535062,81.709,81.629,47.9906]
[1646690795706,122.9,81.708,81.629,47.9906]
[1646690795907,137.33,81.7,81.629,47.9906]
[1646690796113,141.2774,81.69,81.598,53.1982]
[1646690796406,31.11834251,81.689,81.598,53.1982]
[1646690796607,122.9,81.688,81.598,53.1982]
[1646690796806,122.9,81.688,81.603,100.0]
[1646690796807,0.25,81.687,81.603,100.0]
[1646690797008,0.25,81.687,81.604,6.123]
[1646690797207,30.86834251,81.689,81.605,6.25]
[1646690797411,30.86834251,81.689,81.606,129.023]
[1646690797607,30.86834251,81.689,81.611,122.9]
[1646690797811,30.86834251,81.689,81.612,12.373]
[1646690798109,30.86834251,81.689,81.613,23.96]
[1646690798310,30.86834251,81.689,81.614,12.373]
[1646690798510,0.25,81.688,81.614,12.123]
[1646690798714,0.25,81.688,81.613,23.96]
[1646690799512,141.2798,81.68,81.613,23.96]
[1646690799714,0.25,81.679,81.613,23.96]
[1646690800610,18.3817,81.67,81.613,23.96]
[1646690800810,36.39980705,81.669,81.614,0.25]
[1646690801011,14.43,81.69,81.614,0.25]
[1646690801214,14.43,81.69,81.615,122.9]
[1646690801410,14.43,81.69,81.617,122.9]
[1646690801611,14.43,81.71,81.618,12.373]
[1646690802012,32.48391231,81.707,81.62,18.3773]
[1646690802211,32.48391231,81.707,81.621,0.25]
[1646690802611,58.25397991,81.707,81.621,0.25]
[1646690803112,18.3752,81.7,81.621,0.25]
[1646690803313,0.25,81.699,81.614,0.25]
[1646690803513,26.0200676,81.699,81.614,0.25]
[1646690804619,0.25,81.699,81.62,18.3789]
[1646690804843,0.25,81.699,81.621,6.372]
[1646690805741,32.17508456,81.689,81.63,18.3753]
[1646690805941,0.25,81.688,81.631,0.25]
[1646690807946,0.25,81.689,81.631,0.25]
[1646690808648,18.3774,81.69,81.631,0.25]
[1646690808848,14.43,81.7,81.631,0.25]
[1646690808849,28.20624314,81.697,81.64,18.3744]
[1646690809046,0.25,81.696,81.641,0.25]
[1646690809246,28.20624314,81.697,81.641,0.25]
[1646690810152,14.43,81.7,81.641,0.25]
[1646690810352,25.7700676,81.726,81.65,18.3726]
[1646690810553,14.43,81.73,81.651,0.25]
[1646690810750,47.1872,81.749,81.651,48.0084]
[1646690810751,1.64320103,81.737,81.651,48.0084]
[1646690810950,1.64320103,81.735,81.651,48.0084]
[1646690811151,29.34682173,81.734,81.651,48.0084]
[1646690811550,18.3681,81.73,81.66,18.3705]
[1646690811750,18.3681,81.73,81.661,0.25]
[1646690812651,18.3714,81.72,81.661,0.25]
[1646690812852,31.24269604,81.719,81.652,0.25]
[1646690813054,30.99269604,81.719,81.652,0.25]
[1646690813856,30.99269604,81.719,81.66,18.3706]
[1646690814053,30.99269604,81.719,81.661,0.25]
[1646690815353,30.99269604,81.719,81.67,18.3686]
[1646690815554,30.99269604,81.719,81.671,0.25]
[1646690816154,18.3677,81.73,81.671,0.25]
[1646690817155,31.20408848,81.729,81.671,0.25]
[1646690818255,31.20408848,81.729,81.68,18.3666]
[1646690818556,31.20408848,81.729,81.681,0.25]
[1646690819556,1.64320103,81.737,81.69,18.3645]
[1646690819860,1.64320103,81.747,81.691,0.25]
[1646690820056,1.64320103,81.75,81.691,0.25]
[1646690820655,1.64320103,81.745,81.7,18.3607]
[1646690820857,1.64320103,81.745,81.701,0.25]
[1646690821056,1.64320103,81.746,81.701,0.25]
[1646690821459,1.64320103,81.747,81.701,0.25]
[1646690821756,37.06690209,81.749,81.701,0.25]
[1646690822758,1.64320103,81.747,81.701,0.25]
[1646690823558,37.06690209,81.749,81.701,0.25]
[1646690823964,35.42370106,81.749,81.701,0.25]
[1646690824358,1.64320103,81.75,81.701,0.25]
[1646690824560,1.64320103,81.752,81.71,18.36]
[1646690824861,0.25,81.751,81.71,18.36]
[1646690825259,1.64320103,81.754,81.711,0.25]
[1646690825459,27.2787477,81.755,81.711,0.25]
[1646690825858,20.00360103,81.76,81.711,0.25]
[1646690826060,18.3604,81.76,81.711,0.25]
[1646690826762,32.23695865,81.759,81.711,0.25]
[1646690827160,18.3626,81.75,81.7,18.3623]
[1646690827361,0.25,81.749,81.691,47.5099]
[1646690827563,123.15,81.749,81.691,47.5099]
[1646690827760,150.56326863,81.749,81.691,47.5099]
[1646690827961,27.66326863,81.749,81.691,47.5099]
[1646690828161,33.11510599,81.746,81.691,47.5099]
[1646690828360,1.64320103,81.741,81.691,47.5099]
[1646690828561,0.25,81.74,81.691,47.5099]
[1646690829162,122.9,81.739,81.691,47.5099]
[1646690829363,0.25,81.738,81.67,18.3687]
[1646690829662,0.25,81.738,81.671,30.3228]
[1646690830263,18.3686,81.73,81.671,30.3228]
[1646690830464,37.36811957,81.729,81.671,30.3228]
[1646690831567,18.3692,81.72,81.671,30.3228]
[1646690831767,18.3692,81.72,81.671,30.0728]
[1646690832265,37.36811957,81.729,81.68,18.3669]
[1646690833266,37.36811957,81.729,81.681,0.25]
[1646690836771,18.3673,81.73,81.681,0.25]
[1646690837070,1.64320103,81.732,81.69,18.3645]
[1646690837378,1.64320103,81.74,81.691,0.25]
[1646690837569,1.64320103,81.741,81.691,0.25]
[1646690837769,1.64320103,81.742,81.691,0.25]
[1646690837970,1.64320103,81.74,81.691,0.25]
[1646690838171,1.64320103,81.739,81.691,0.25]
[1646690838375,1.64320103,81.739,81.7,18.3607]
[1646690838594,1.64320103,81.736,81.7,18.3607]
[1646690838795,1.64320103,81.735,81.7,18.3607]
[1646690839093,1.64320103,81.735,81.685,6.118]
[1646690839297,1.64320103,81.735,81.686,0.25]
[1646690839494,1.64320103,81.743,81.69,18.364]
[1646690839695,1.64320103,81.748,81.691,12.63165049]
[1646690839895,1.64320103,81.75,81.692,24.1945]
[1646690840097,1.64320103,81.75,81.693,12.63165049]
[1646690840294,1.64320103,81.749,81.693,12.368]
[1646690840494,1.64320103,81.749,81.693,6.368]
[1646690840694,1.64320103,81.748,81.694,6.0]
[1646690840894,1.64320103,81.748,81.7,18.3575]
[1646690841094,1.64320103,81.748,81.701,0.25]
[1646690841296,1.64320103,81.749,81.701,0.25]
[1646690841698,1.64320103,81.75,81.701,0.25]
[1646690841899,1.64320103,81.751,81.701,0.25]
[1646690842097,1.64320103,81.754,81.702,6.118]
[1646690842296,1.64320103,81.754,81.703,0.25]
[1646690842498,1.64320103,81.751,81.71,18.3601]
[1646690842699,1.64320103,81.757,81.711,23.3012]
[1646690843096,1.64320103,81.758,81.711,23.3012]
[1646690843297,1.64320103,81.757,81.712,6.117]
[1646690843499,1.64320103,81.757,81.713,0.25]
[1646690843698,39.9626056,81.758,81.713,0.25]
[1646690844504,1.64320103,81.757,81.713,0.25]
[1646690844699,1.64320103,81.756,81.712,0.25]
[1646690844899,1.64320103,81.757,81.712,0.25]
[1646690845903,1.64320103,81.759,81.712,0.25]
[1646690846106,1.64320103,81.758,81.712,0.25]
[1646690846307,1.64320103,81.757,81.72,18.3574]
[1646690846509,1.64320103,81.757,81.721,24.7059]
[1646690846705,1.64320103,81.758,81.722,0.25]
[1646690846905,1.64320103,81.764,81.713,6.115]
[1646690847108,1.64320103,81.765,81.714,0.25]
[1646690847311,1.64320103,81.765,81.712,0.25]
[1646690847514,1.64320103,81.764,81.712,0.25]
[1646690847719,1.64320103,81.764,81.73,18.3553]
[1646690847908,1.64320103,81.771,81.731,0.25]
[1646690848108,1.64320103,81.781,81.731,6.25]
[1646690848309,1.64320103,81.782,81.732,46.9918]
[1646690848509,1.64320103,81.782,81.733,6.25]
[1646690848709,1.64320103,81.781,81.733,6.25]
[1646690848909,1.64320103,81.782,81.733,6.25]
[1646690849210,1.64320103,81.782,81.74,18.3466]
[1646690849411,1.64320103,81.782,81.741,0.25]
[1646690849612,1.64320103,81.78,81.733,0.25]
[1646690849809,6.64103893,81.8,81.733,0.25]
[1646690849810,1.64320103,81.777,81.733,0.25]
[1646690850010,1.64320103,81.773,81.733,0.25]
[1646690850216,18.3589,81.77,81.733,0.25]
[1646690850410,18.3589,81.77,81.704,0.25]
[1646690850811,20.00210103,81.77,81.704,0.25]
[1646690851211,1.64320103,81.769,81.704,0.25]
[1646690851814,20.00210103,81.77,81.704,0.25]
[1646690852218,20.00210103,81.77,81.72,18.3573]
[1646690852514,20.00210103,81.77,81.721,0.25]
[1646690852715,1.64320103,81.768,81.721,0.25]
[1646690852916,18.36,81.76,81.721,0.25]
[1646690853117,1.64320103,81.767,81.721,0.25]
[1646690853414,1.64320103,81.766,81.721,0.25]
[1646690853618,1.64320103,81.768,81.711,0.25]
[1646690854616,1.64320103,81.767,81.711,0.25]
[1646690854820,1.64320103,81.767,81.72,18.3569]
[1646690855019,1.64320103,81.768,81.721,0.25]
[1646690855217,18.3584,81.77,81.721,0.25]
[1646690855418,1.64320103,81.771,81.721,0.25]
[1646690855618,1.64320103,81.772,81.721,0.25]
[1646690856219,1.64320103,81.772,81.73,18.3549]
[1646690856419,1.64320103,81.774,81.731,0.25]
[1646690856619,1.64320103,81.775,81.731,0.25]
[1646690857642,1.64320103,81.776,81.731,0.25]
[1646690859647,1.64320103,81.775,81.731,0.25]
[1646690860444,1.64320103,81.774,81.731,0.25]
[1646690861243,18.3579,81.77,81.721,0.25]
[1646690861643,1.64320103,81.773,81.721,0.25]
[1646690861847,0.25,81.772,81.721,23.91]
[1646690862244,1.64320103,81.766,81.721,23.91]
[1646690862444,35.98445532,81.762,81.721,23.91]
[1646690862648,0.25,81.761,81.721,23.91]
[1646690863246,1.89320103,81.761,81.721,23.91]
[1646690863645,1.64320103,81.759,81.721,23.91]
[1646690864048,1.64320103,81.759,81.722,0.25]
[1646690864246,0.25,81.87,81.722,6.55]
[1646690864247,1.64320103,81.77,81.722,6.55]
[1646690864447,1.64320103,81.773,81.722,6.55]
[1646690864646,1.64320103,81.776,81.722,6.55]
[1646690865052,1.64320103,81.777,81.73,18.353]
[1646690865251,1.64320103,81.778,81.731,24.598]
[1646690865447,1.64320103,81.777,81.731,24.598]
[1646690865648,1.64320103,81.774,81.731,24.598]
[1646690865848,1.64320103,81.774,81.732,24.4421]
[1646690866049,1.64320103,81.774,81.733,0.25]
[1646690866648,1.64320103,81.772,81.733,0.25]
[1646690867052,30.52343873,81.775,81.68,24.5193]
[1646690867053,1.64320103,81.766,81.68,24.5193]
[1646690867251,1.64320103,81.76,81.704,30.468]
[1646690867449,37.43697103,81.759,81.704,30.468]
[1646690867853,1.64320103,81.757,81.704,30.468]
[1646690868251,1.64320103,81.757,81.71,18.3595]
[1646690868451,1.64320103,81.757,81.711,6.25]
[1646690869651,1.64320103,81.753,81.712,0.25]
[1646690869851,8.42320103,81.753,81.712,0.25]
[1646690870852,1.64320103,81.752,81.712,0.25]
[1646690871254,1.64320103,81.755,81.712,0.25]
[1646690871457,1.64320103,81.755,81.711,0.25]
[1646690872253,1.64320103,81.754,81.711,0.25]
[1646690872960,1.64320103,81.754,81.72,18.3571]
[1646690873155,1.64320103,81.755,81.721,0.25]
[1646690875957,1.64320103,81.756,81.721,0.25]
[1646690877157,1.64320103,81.755,81.721,0.25]
[1646690877759,9.11,81.755,81.705,6.0]
[1646690877959,18.363,81.75,81.706,0.25]
[1646690878159,1.64320103,81.751,81.706,0.25]
[1646690879257,1.64320103,81.751,81.71,18.3593]
[1646690879461,1.64320103,81.751,81.711,0.25]
[1646690879658,1.64320103,81.764,81.707,2.83613526]
[1646690879861,14.43,81.82,81.706,0.52314281]
[1646690879862,1.64320103,81.776,81.713,122.9]
[1646690880062,1.64320103,81.781,81.715,122.9]
[1646690880259,1.64320103,81.785,81.717,122.9]
[1646690880459,1.64320103,81.786,81.726,73.9]
[1646690880662,1.64320103,81.789,81.729,122.9]
[1646690880859,1.64320103,81.79,81.731,122.9]
[1646690881059,1.64320103,81.79,81.733,122.9]
[1646690881259,1.64320103,81.79,81.735,122.9]
[1646690881460,1.64320103,81.796,81.737,122.9]
[1646690881659,1.64320103,81.8,81.739,122.9]
[1646690881860,1.64320103,81.8,81.741,122.9]
[1646690882060,1.64320103,81.8,81.75,18.3445]
[1646690882259,1.64320103,81.801,81.751,23.9229]
[1646690882459,1.64320103,81.8,81.751,23.9229]
[1646690882661,1.64320103,81.798,81.751,23.9229]
[1646690883060,1.64320103,81.799,81.76,18.3469]
[1646690883263,1.64320103,81.802,81.761,0.25]
[1646690883462,1.64320103,81.803,81.761,0.25]
[1646690883661,1.64320103,81.805,81.761,0.25]
[1646690883861,1.64320103,81.809,81.761,0.25]
[1646690884263,1.64320103,81.808,81.77,18.3457]
[1646690884465,1.64320103,81.809,81.771,0.25]
[1646690884865,1.64320103,81.811,81.771,0.25]
[1646690885067,1.64320103,81.815,81.771,0.25]
[1646690885264,1.64320103,81.816,81.771,0.25]
[1646690885464,1.64320103,81.82,81.771,0.25]
[1646690885665,1.64320103,81.82,81.765,0.25]
[1646690885868,1.64320103,81.825,81.765,123.15]
[1646690886065,1.64320103,81.825,81.766,6.0]
[1646690886265,1.64320103,81.825,81.78,18.3403]
[1646690886465,1.64320103,81.825,81.781,0.25]
[1646690886665,1.64320103,81.826,81.767,0.25]
[1646690886866,1.64320103,81.824,81.767,0.25]
[1646690887265,1.64320103,81.827,81.767,0.25]
[1646690887466,1.64320103,81.827,81.79,18.341]
[1646690887667,6.63699791,81.847,81.791,0.25]
[1646690887668,1.64320103,81.838,81.791,0.25]
[1646690888269,1.64320103,81.844,81.791,0.25]
[1646690888472,1.64320103,81.845,81.791,48.0922]
[1646690888670,1.64320103,81.846,81.791,48.0922]
[1646690888869,1.64320103,81.846,81.8,18.3347]
[1646690889079,1.64320103,81.847,81.801,0.25]
[1646690889671,1.64320103,81.846,81.801,0.25]
[1646690890072,1.64320103,81.845,81.801,0.25]
[1646690890471,1.64320103,81.851,81.81,18.3364]
[1646690890673,1.64320103,81.854,81.811,0.25]
[1646690890874,1.64320103,81.857,81.811,0.25]
[1646690891273,1.64320103,81.856,81.811,0.25]
[1646690891474,1.64320103,81.857,81.82,18.3339]
[1646690891675,1.64320103,81.857,81.821,0.21391034]
[1646690891872,1.64320103,81.862,81.82,18.3339]
[1646690892076,1.64320103,81.868,81.82,27.6439]
[1646690892281,1.64320103,81.868,81.821,6.0]
[1646690892474,1.64320103,81.887,81.821,6.0]
[1646690892873,1.64320103,81.895,81.822,0.29441108]
[1646690893074,1.64320103,81.895,81.822,45.7053]
[1646690893275,1.64320103,81.895,81.83,18.3258]
[1646690893475,1.64320103,81.894,81.831,6.25]
[1646690893677,1.64320103,81.905,81.831,6.25]
[1646690893876,1.64320103,81.907,81.832,0.29441108]
[1646690894077,1.64320103,81.909,81.831,0.25]
[1646690894276,29.4247495,81.908,81.831,0.25]
[1646690894677,0.25,81.907,81.831,0.25]
[1646690894980,51.70556427,81.907,81.823,6.25]
[1646690895177,26.37835666,81.906,81.823,0.25]
[1646690895377,0.25,81.905,81.823,0.25]
[1646690896280,2.83613526,81.904,81.823,0.25]
[1646690896477,0.25,81.903,81.823,6.25]
[1646690896678,7.88,81.903,81.822,22.5888]
[1646690896879,0.25,81.902,81.822,22.5888]
[1646690897081,71.04396539,81.902,81.822,22.5888]
[1646690897279,19.33840112,81.901,81.822,22.5888]
[1646690897480,1.89320103,81.9,81.822,22.5888]
[1646690897684,18.3361,81.89,81.822,22.5888]
[1646690897882,0.25,81.889,81.719,0.30491689]
[1646690898081,0.25,81.889,81.77,14.43]
[1646690898283,14.43,81.88,81.771,6.0]
[1646690898483,32.77381002,81.878,81.77,14.43]
[1646690898685,0.25,81.877,81.771,6.0]
[1646690898888,26.62835666,81.877,81.771,6.0]
[1646690899087,25.07720761,81.876,81.771,6.0]
[1646690899284,0.25,81.875,81.771,6.0]
[1646690899488,43.13062252,81.875,81.771,6.0]
[1646690899685,71.04396539,81.875,81.772,0.25]
[1646690899886,45.71675778,81.874,81.772,0.25]
[1646690900086,32.7706,81.87,81.772,0.25]
[1646690900286,32.7706,81.87,81.759,48.7166]
[1646690900486,26.37835666,81.869,81.76,6.0]
[1646690900686,70.79396539,81.869,81.76,8.83613526]
[1646690900986,44.41560873,81.868,81.76,6.0]
[1646690901185,70.79396539,81.868,81.76,6.0]
[1646690901388,18.3428,81.86,81.76,24.3434]
[1646690901585,0.25,81.859,81.761,0.25]
[1646690901787,3.08613526,81.859,81.761,0.25]
[1646690902286,2.83613526,81.858,81.76,6.0]
[1646690902493,0.25,81.857,81.77,18.3415]
[1646690902692,6.95,81.857,81.771,22.8295]
[1646690902893,18.3445,81.85,81.771,22.8295]
[1646690903092,28.85517006,81.849,81.771,22.8295]
[1646690903492,14.43,81.85,81.78,18.338]
[1646690903692,122.9,81.868,81.781,6.25]
[1646690903894,0.25,81.867,81.781,23.0795]
[1646690904493,31.63197891,81.867,81.781,23.0795]
[1646690904694,125.73613526,81.866,81.781,23.0795]
[1646690904993,122.9,81.859,81.781,0.25]
[1646690905194,0.25,81.858,81.76,31.1446]
[1646690905396,174.60556427,81.858,81.76,31.1446]
[1646690905593,148.22720761,81.858,81.76,31.1446]
[1646690905795,122.9,81.856,81.76,25.1446]
[1646690905996,122.9,81.849,81.76,25.1446]
[1646690906211,0.25,81.848,81.76,25.1446]
[1646690906415,174.55208481,81.848,81.76,25.1446]
[1646690906611,177.38822007,81.848,81.76,25.1446]
[1646690906813,54.23822007,81.847,81.76,25.1446]
[1646690907015,0.25,81.846,81.76,43.489]
[1646690907213,3.08613526,81.846,81.761,6.0]
[1646690907414,2.83613526,81.845,81.762,0.25]
[1646690907712,0.25,81.844,81.762,0.25]
[1646690908115,3.08613526,81.844,81.77,18.3423]
[1646690908312,3.08613526,81.844,81.771,0.25]
[1646690909314,4.72933629,81.844,81.762,0.25]
[1646690909715,4.70217311,81.844,81.762,0.25]
[1646690910115,3.05897208,81.844,81.762,0.25]
[1646690910316,0.22283682,81.844,81.763,6.112]
[1646690910518,0.22283682,81.844,81.77,18.3429]
[1646690910717,1.64320103,81.848,81.771,36.1789]
[1646690911619,1.64320103,81.85,81.771,30.0679]
[1646690911820,1.64320103,81.858,81.78,18.3411]
[1646690912018,2.83613526,81.864,81.78,18.3411]
[1646690912019,1.64320103,81.863,81.781,12.361]
[1646690912216,1.64320103,81.863,81.782,23.1601]
[1646690912517,1.64320103,81.864,81.783,6.25]
[1646690912719,26.37835666,81.863,81.79,18.3392]
[1646690913017,25.02372815,81.862,81.791,0.25]
[1646690913317,1.64320103,81.861,81.792,6.11]
[1646690913517,1.64320103,81.861,81.793,0.25]
[1646690913716,1.64320103,81.861,81.794,6.11]
[1646690913917,26.66692918,81.862,81.8,18.3371]
[1646690914219,26.37835666,81.863,81.801,0.25]
[1646690915019,1.64320103,81.866,81.801,0.25]
[1646690915521,1.64320103,81.865,81.802,6.109]
[1646690915718,1.64320103,81.866,81.803,0.25]
[1646690915918,1.64320103,81.866,81.81,18.3354]
[1646690916118,1.64320103,81.866,81.811,0.25]
[1646690916323,1.64320103,81.867,81.811,0.25]
[1646690916722,1.64320103,81.869,81.811,0.25]
[1646690917120,1.64320103,81.869,81.812,6.109]
[1646690917321,1.64320103,81.867,81.813,0.25]
[1646690917524,1.64320103,81.868,81.813,0.25]
[1646690917725,1.64320103,81.868,81.814,6.109]
[1646690918021,1.64320103,81.868,81.815,0.25]
[1646690918222,1.64320103,81.868,81.816,6.109]
[1646690918422,1.64320103,81.869,81.817,0.25]
[1646690918623,1.64320103,81.869,81.82,18.3336]
[1646690918826,1.64320103,81.875,81.821,0.25]
[1646690919025,26.37835666,81.902,81.823,100.0]
[1646690919026,1.64320103,81.881,81.823,100.0]
[1646690919229,1.64320103,81.885,81.824,123.15]
[1646690919429,1.64320103,81.885,81.825,6.0]
[1646690919627,1.64320103,81.887,81.826,0.25]
[1646690919928,1.64320103,81.888,81.828,100.0]
[1646690920128,1.64320103,81.888,81.83,18.3261]
[1646690920329,1.64320103,81.888,81.831,0.25]
[1646690921128,1.64320103,81.886,81.831,0.25]
[1646690921329,1.64320103,81.886,81.826,0.25]
[1646690921531,1.64320103,81.886,81.84,18.3292]
[1646690921736,1.64320103,81.886,81.841,0.25]
[1646690922031,0.25,81.885,81.825,47.6774]
[1646690922437,1.64320103,81.884,81.825,47.6774]
[1646690922633,0.25,81.883,81.825,47.6774]
[1646690922834,1.89320103,81.885,81.825,47.6774]
[1646690923034,1.64320103,81.884,81.83,18.3319]
[1646690923236,0.25,81.883,81.831,0.25]
[1646690924038,0.25,81.883,81.825,47.6774]
[1646690924245,1.64320103,81.88,81.826,0.25]
[1646690924442,33.14228057,81.879,81.826,0.25]
[1646690924639,1.64320103,81.876,81.826,0.25]
[1646690924855,1.64320103,81.874,81.826,0.25]
[1646690925058,0.25,81.873,81.826,0.25]
[1646690925257,1.89320103,81.873,81.817,0.25]
[1646690925460,0.25,81.873,81.817,0.25]
[1646690925866,1.64320103,81.871,81.817,0.25]
[1646690926059,1.64320103,81.862,81.817,0.25]
[1646690926258,0.25,81.861,81.817,0.25]